Cogmind - Beta 16 @@@ ROGUE MODE // 2025.11.19 @ 17:46:57 Player: oshi0ne1 Result: Destroyed by Y-45 Defender with Beam Rifle Performance ------------- Evolutions (1) 500 Regions Visited (2) 400 Robots Destroyed (26) 130 Value Destroyed (443) 443 Prototype IDs (0) 0 Alien Tech Used (0) 0 Bonus (0) 0 TOTAL SCORE: 1473 Bonus ------- None Cogmind --------- Core Integrity 0/400 Matter 71/300 Energy 125/125 System Corruption 1% Temperature Cool (9) Movement Rolling (115) Ox1 Location -9/Materials Parts ------- > --- POWER (1) -------- Light Ion Engine > --- PROPULSION (2) --- Compact Wheel > --- UTILITY (4) ------ Large Storage Unit > --- WEAPON (2) ------- Mace > --- INVENTORY (15) --- Particle Gun Peak State ------------ > --- POWER ------------ Ion Engine > --- PROPULSION ------- Light Treads Light Treads > --- UTILITY ---------- Small Storage Unit Large Storage Unit Improved Terrain Scanner Seismic Detector > --- WEAPON ----------- Light Assault Rifle Heavy Assault Rifle > --- INVENTORY -------- Light Ion Engine Light Ion Engine Compact Wheel Compact Wheel Light Assault Rifle Light Assault Rifle Light Assault Rifle Grenade Launcher [Rating: 12] Favorites ----------- Power Ion Engine Engine Ion Engine Propulsion Light Treads Treads Light Treads Wheel Compact Wheel Utility Small Storage Unit Device Seismic Detector Storage Small Storage Unit Weapon Light Assault Rifle Energy Gun Medium Laser Ballistic Gun Light Assault Rifle Launcher Grenade Launcher Impact Weapon Mace Build | -11 -10 -9 ------- Run | Yrd Mat Mat Slots Evolved 2 | . . 2 Power . | . . . Propulsion . | . . . Utility 2 | . . 2 Weapon . | . . . Parts Attached 25 | 8 3 14 Power 4 | 1 1 2 Engine 4 | 1 1 2 Core . | . . . Reactor . | . . . Propulsion 5 | 2 . 3 Treads 3 | 2 . 1 Leg . | . . . Wheel 2 | . . 2 Hover . | . . . Flight . | . . . Utility 4 | 3 . 1 Device 2 | 2 . . Storage 2 | 1 . 1 Processor . | . . . Hackware . | . . . Protection . | . . . Artifact . | . . . Weapon 12 | 2 2 8 Energy Gun 2 | 1 . 1 Energy Cannon . | . . . Ballistic Gun 8 | 1 2 5 Ballistic Cannon . | . . . Launcher 1 | . . 1 Special Weapon . | . . . Impact Weapon 1 | . . 1 Slashing Weapon . | . . . Piercing Weapon . | . . . Special Melee Weapon . | . . . Unidentified Prototypes . | . . . Parts Lost 13 | . . 13 Power 2 | . . 2 Propulsion 3 | . . 3 Utility 2 | . . 2 Weapon 6 | . . 6 Highest Loss Streak 12 | . . 12 To Critical Strikes . | . . . Average Backups 6 | 3 7 6 Power 1 | . 1 1 Propulsion 1 | 1 2 1 Utility . | . . . Weapon 2 | . 2 3 Tool/Special . | . . . Unused Backups 1 | . 1 . Power . | . . . Propulsion . | . . . Utility . | . . . Weapon 1 | . 1 . Tool/Special . | . . . Average Slot Usage (%) 89 | . 100 77 Engine 12 | . 14 10 Treads 23 | . 28 16 Wheel 1 | . . 2 Device 15 | . 14 16 Storage 12 | . 14 11 Ballistic Gun 22 | . 26 17 Peak Build Rating 12 | 9 8 12 Average Rating 7 | 5 7 9 On Entrance 5 | . 7 8 Avg Prop Armor Cover (%) . | . . . Naked Turns . | . . . Heaviest Build 34 | 12 14 34 Greatest Support 40 | 40 40 40 Greatest Overweight (x) 1 | . . 1 Average Overweight (x) . | . . . Largest Inventory Capacity 15 | 8 8 15 Average Capacity 9 | 7 8 12 Most Carried 9 | 5 8 9 Average Carried 6 | 3 7 6 Final Capacity 15 | 8 8 15 Final Carried 8 | 5 8 1 Class Distribution -------------------- 85% | Mutant 14% | Scavenger-Mutant Dominant Class ---------------- Mutant | -10/Materials Mutant | -9/Materials Resources | -11 -10 -9 ----------- Run | Yrd Mat Mat Matter Collected 432 | 261 92 79 Remotely . | . . . Salvage Created 503 | 141 117 245 Parts 52 | 10 10 32 Haulers Intercepted . | . . . Recyclers Shooed 1 | 1 . . Parts Field Recycled . | . . . Retrieved Matter . | . . . Parts Self-Destructed . | . . . Prevented . | . . . Parts Restored . | . . . Kills | -11 -10 -9 ------- Run | Yrd Mat Mat Combat Hostiles Destroyed 17 | . 5 12 Melee 1 | . . 1 Guns 10 | . 5 5 AOE 6 | . . 6 Classes Destroyed 8 | 2 2 4 Worker 2 | . . 2 Builder 1 | . . 1 Tunneler 4 | 3 . 1 Recycler 1 | 1 . . Operator 1 | . . 1 Swarmer 11 | . 4 7 Grunt 4 | . 1 3 Sentry 2 | . . 2 Best Kill Streak 9 | 2 3 9 Combat Bots Only 5 | . 3 5 Max Kills in Single Turn 3 | 1 1 3 Gunslinging . | . . . Exploded 3 | . . 3 Melee 1 | . . 1 Uniques/NPCs Destroyed . | . . . Combat | -11 -10 -9 -------- Run | Yrd Mat Mat Hostile Shots Fired 192 | . 37 155 Missed 48 | . 11 37 Hits 144 | . 26 118 Projectile 144 | . 26 118 Critical Strikes 2 | . 1 1 Damage Taken 1794 | . 228 1566 Core 458 | . 46 412 Absorbed by Shields . | . . . Regen/Repaired (Parts) 12 | . 12 . Core Remaining (%) 90 | 100 81 . Volleys Fired 76 | 15 20 41 Largest 2 | 2 2 2 Hottest 70 | 70 40 53 Shots Fired 144 | 30 40 74 Gun 139 | 30 40 69 Cannon . | . . . Launcher 5 | . . 5 Special . | . . . Kinetic 124 | 15 40 69 Thermal 15 | 15 . . Explosive 5 | . . 5 Electromagnetic . | . . . Robot Hit Streak 6 | 5 6 6 Robot Miss Streak 4 | 1 4 4 Penetration Max . | . . . Secondary Targets 1 | . . 1 Max Gunslinging Chain 1 | . . 1 Shots Hit Robots 86 | 20 21 45 Core Hits 43 | 8 9 26 Critical Kills . | . . . Critical Parts Destroyed 1 | . . 1 Critical Strikes 2 | 1 . 1 Burn 1 | 1 . . Smash 1 | . . 1 Melee Attacks 3 | . . 3 Impact 3 | . . 3 Slashing . | . . . Piercing . | . . . Sneak Attacks . | . . . Combat Hostiles . | . . . Follow-up Attacks . | . . . Damage Inflicted 1707 | 206 178 1323 Guns 750 | 206 178 366 Cannons . | . . . Explosions 849 | . . 849 Melee 108 | . . 108 Ramming . | . . . Kinetic 639 | 95 178 366 Thermal 111 | 111 . . Explosive 849 | . . 849 Electromagnetic . | . . . Impact 108 | . . 108 Slashing . | . . . Piercing . | . . . Highest Corruption 1 | . . 1 Average Corruption 1 | . . 1 Corruption Purged . | . . . Corruption Blocked . | . . . Effects 1 | . . 1 Matter Fused 1 | . . 1 Overload Shots . | . . . Overflow Damage 177 | . . 177 Projectiles . | . . . Explosions 139 | . . 139 Melee 38 | . . 38 Knockbacks . | . . . Impact . | . . . Kinetic . | . . . Secondary . | . . . Self-Inflicted Damage 161 | . . 161 Shots 2 | . . 2 Rammed . | . . . Targets Rammed . | . . . Kicked . | . . . Crushed . | . . . Highest Temperature 80 | 80 12 21 Average Temperature 19 | 28 7 6 Received Heat Transfer 501 | . 48 453 Siege Activations . | . . . Martial Activations . | . . . Shielding Activations . | . . . Robots Disrupted . | . . . Combat Hostiles . | . . . Robots Corrupted . | . . . Combat Hostiles . | . . . Parts Fried . | . . . Impact Corruptions 2 | . . 2 Robots Melted . | . . . Combat Hostiles . | . . . Parts Melted 1 | 1 . . Heat Transferred 407 | 407 . . Parts Sabotaged . | . . . Parts Stolen . | . . . Parts Stripped . | . . . Power Chain Reactions . | . . . Alert | -11 -10 -9 ------- Run | Yrd Mat Mat Maximum Alert Level 1 | . . 1 Low Security (%) 89 | 100 100 68 Level 1 10 | . . 31 Level 2 . | . . . Level 3 . | . . . Level 4 . | . . . Level 5 . | . . . High Security . | . . . Max Security . | . . . Peak Influence 322 | 5 75 322 Initial 18 | . . 18 Average 58 | . 17 154 Influence Increases 672 | 20 140 512 Destroy 0b10 Robot/C 340 | . 100 240 Destroy 0b10 Robot/NC 45 | 20 . 25 Destroy Leader 80 | . 20 60 Successful Hack 5 | . 5 . Disable Machine 75 | . . 75 Destroy Structure 67 | . . 67 Lose Combat Pursuer 60 | . 15 45 Influence Decreases 440 | 20 94 326 Entered New Map 28 | . . 28 Time Decay 282 | 20 94 168 Lost Part 130 | . . 130 Squads Dispatched 4 | . 1 3 Investigation . | . . . Extermination . | . . . Reinforcement 4 | . 1 3 Assault . | . . . Garrison . | . . . Intercept . | . . . Searches Triggered . | . . . Construction Impeded 1 | . . 1 Haulers Reinforced . | . . . Active Scanning Responses . | . . . Cargo Convoy Interrupts . | . . . Stealth | -11 -10 -9 --------- Run | Yrd Mat Mat Distress Signals 2 | . . 2 Communications Jammed . | . . . Distress Signals . | . . . Times Spotted 38 | . 11 27 Peak Tracking Total 8 | . 3 8 Tactical Retreats 3 | . 1 2 Traps | -11 -10 -9 ------- Run | Yrd Mat Mat Traps Triggered . | . . . Indirectly . | . . . Trap Hack Attempts . | . . . Triggered . | . . . Disarmed . | . . . Reprogrammed . | . . . Reused . | . . . Traps Extracted . | . . . Installed . | . . . Triggered . | . . . Machines | -11 -10 -9 ---------- Run | Yrd Mat Mat Machines Disabled 5 | . . 5 Max in Single Turn 3 | . . 3 Machines Repaired . | . . . Machines Dismantled . | . . . Machines Sabotaged . | . . . Overloaded Fab Kills . | . . . Hacking | -11 -10 -9 --------- Run | Yrd Mat Mat Machines Accessed 3 | . 2 1 Terminals 1 | . 1 . Fabricators . | . . . Repair Stations 1 | . 1 . Recycling Units 1 | . . 1 Scanalyzers . | . . . Garrison Access . | . . . Total Hacks 9 | . 5 4 Successful 4 | . 3 1 Failed 5 | . 2 3 Catastrophic 1 | . . 1 Database Lockouts . | . . . Manual . | . . . Terminals 3 | . 3 . Fabricators . | . . . Repair Stations 2 | . 2 . Recycling Units 4 | . . 4 Scanalyzers . | . . . Garrison Access . | . . . Terminal Hacks 1 | . 1 . Hauler Manifests 1 | . 1 . Fabricator Hacks . | . . . Repair Station Hacks 2 | . 2 . Scan Component 1 | . 1 . Repair 1 | . 1 . Recycling Unit Hacks 1 | . . 1 Report Inventory 1 | . . 1 Scanalyzer . | . . . Garrison Access Hacks . | . . . Unauthorized Hacks . | . . . Terminals . | . . . Fabricators . | . . . Repair Stations . | . . . Recycling Units . | . . . Scanalyzers . | . . . Garrison Access . | . . . Data Cores Recovered . | . . . Used . | . . . Hacking Detections 3 | . 2 1 Full Trace Events 1 | . . 1 Feedback Events . | . . . Feedback Blocked . | . . . Robot Schematics Acquired . | . . . Robots Built . | . . . Authchips . | . . . Time . | . . . Total Robot Build Rating . | . . . Part Schematics Acquired . | . . . Parts Built . | . . . Authchips . | . . . Time . | . . . Total Part Build Rating . | . . . Part Studies Acquired . | . . . Parts Repaired 1 | . 1 . Time 38 | . 38 . Parts Recycled . | . . . Recycled Matter . | . . . Retrieved Matter . | . . . Retrieved Components . | . . . Parts Scanalyzed . | . . . Part Schematics Acquired . | . . . Parts Damaged . | . . . Bothacking | -11 -10 -9 ------------ Run | Yrd Mat Mat Used RIF Installer . | . . . Robots Hacked . | . . . Non-combat . | . . . Combat . | . . . Robot Hacks Applied . | . . . Relay Couplers Released . | . . . Fabnet Peak Effective % . | . . . Robots Rewired . | . . . Allies Hacked . | . . . Hacks Repelled . | . . . Allies | -11 -10 -9 -------- Run | Yrd Mat Mat Total Allies . | . . . Largest Group . | . . . Highest-Rated Group . | . . . Highest-Rated Ally . | . . . Total Orders . | . . . Ally Attacks . | . . . Total Damage . | . . . Kills . | . . . Allies Corrupted . | . . . Allies Melted . | . . . Intel | -11 -10 -9 ------- Run | Yrd Mat Mat Active Infowar (turns) 793 | 30 440 323 Terrain 342 | 19 . 323 Seismic 677 | 11 440 226 Robot Analysis Total . | . . . Derelict Logs Recovered . | . . . Drone Launches . | . . . Drone Recoveries . | . . . Exploration | -11 -10 -9 ------------- Run | Yrd Mat Mat Turns Passed 1082 | 281 440 361 Spaces Moved 479 | 141 198 140 Core 2 | 2 . . Treads 447 | 139 198 110 Legs . | . . . Wheels 30 | . . 30 Hover . | . . . Flight . | . . . Fastest Speed 50 | 50 160 100 Average Speed 156 | 158 160 150 Slowest Speed 240 | 160 160 240 Overloaded Moves . | . . . Propulsion Burnouts . | . . . Robots Hopped . | . . . Potential Cave-ins 16 | . . 16 Cave-ins Triggered 2 | . . 2 Exploration Rate (%) 17 | 8 31 13 Regions Visited 2 Branch Regions . Pre-discovered Areas . | . . . Known Exits Taken . | . . . Unknown Exits Taken 2 | 1 1 . Scrap Searched . | . . . Spaces Dug . | . . . Terrain Destroyed 90 | . . 90 Melee . | . . . Projectile . | . . . AOE 90 | . . 90 Terrain Rammed . | . . . Walls Destroyed . | . . . Machines Disabled . | . . . Actions | -11 -10 -9 --------- Run | Yrd Mat Mat Total 677 | 168 290 219 Wait 70 | . 62 8 Move 476 | 140 197 139 Hop . | . . . Pick Up 11 | 4 5 2 Fast Attach 11 | 8 . 3 Attach 8 | . . 8 Detach 1 | 1 . . Swap 11 | . 3 8 Drop 9 | . 3 6 Fire 76 | 15 20 41 Melee 3 | . . 3 Ram . | . . . Kick . | . . . Crush . | . . . Escape Stasis 1 | . . 1 Rewire . | . . . Trap . | . . . Miscellaneous . | . . . Route ------- -11/Scrapyard -10/Materials -9/Materials (discovered 1 exit: [Min]) History --------- Turn | Location | Event 2 | -11/Scrapyard | Met Revision 17 22 | -11/Scrapyard | Discovered new exit (range 16) 282 | -11/Scrapyard | Entered Materials 311 | -10/Materials | Build established: Mutant 462 | -10/Materials | Repaired Imp. Terrain Scanner 690 | -10/Materials | Discovered new exit (range 3) 722 | -10/Materials | Entered another Materials area 722 | -9/Materials | Evolved 2 slots: Utility x2 1001 | -9/Materials | Discovered new exit (range 15) 1013 | -9/Materials | Core integrity fell below 50% 1044 | -9/Materials | Core integrity fell below 20% 1045 | -9/Materials | Crushed by falling debris 1060 | -9/Materials | Crushed by falling debris 1083 | -9/Materials | Destroyed by Y-45 Defender with Beam Rifle Last Messages --------------- The unstable cave ceiling collapses. Acquired Particle Gun. System corrupted: Matter fused (-8). U-05 Engineer lays Concrete. Acquired Mace. U-05 Engineer builds a Wall. U-05 Engineer lays Concrete. U-05 Engineer builds a Wall. Hvy. Assault Rifle destroyed. G-34 Mercenary suffers critical hit (Smash). Destroyed Ion Engine. G-34 Mercenary system corrupted by crushing effect. Destroyed Heat Sink. G-34 Mercenary system corrupted by crushing effect. U-05 Engineer lays Concrete. U-05 Engineer builds a Wall. G-34 Mercenary destroyed. G-34 Mercenary IFF system glitched. Map ----- +----------------------------------------------------+ | ?????????????????????????????????????????????????? | | ?????????????????????????????????????????????????? | | ???????????????+?????????????????????????????????? | | ?????????????????????????????????????????????????? | | ?????????????????????????????????????????????????? | | ???????????????